Cogmind - Beta 13 @@@ ROGUE MODE // 2024.05.15 @ 00:31:23 Player: GayPredator Result: Self-destructed Performance ------------- Evolutions (4) 2000 Regions Visited (12) 2400 Robots Destroyed (81) 405 Value Destroyed (3915) 3915 Prototype IDs (1) 20 Alien Tech Used (0) 0 Bonus (2816) 2816 TOTAL SCORE: 11556 Bonus ------- High Alert Combat Kills 500 Follower Combat Kills 671 Entered Garrisons 400 Used RIF Installer 1000 Aligned with FarCom 300 Friendly Fire -55 Cogmind --------- Core Integrity 463/850 Matter 300/300 Energy 10/100 System Corruption 0% Temperature Cool (0) Movement Rolling (100) Location -6/Cetus Parts ------- > --- POWER (1) -------- (None) > --- PROPULSION (4) --- Armored Huge Wheel > --- UTILITY (7) ------ Advanced Heat Sink System Shield Relay Coupler [NC] (10) Relay Coupler [Grunt] (14) > --- WEAPON (3) ------- (None) > --- INVENTORY (5) ---- Advanced Weight Redist. System Trap Scanner Advanced System Shield Relay Coupler [Hunter] (18) Relay Coupler [Hunter] (17) Peak State ------------ > --- POWER ------------ Light Quantum Reactor > --- PROPULSION ------- Flying Fortress v7 > --- UTILITY ---------- Advanced Heat Sink Large Storage Unit Advanced Weight Redist. System Improved Phase Shifter Improved Propulsion Shielding Relay Coupler [NC] Relay Coupler [Grunt] > --- WEAPON ----------- Phase Gun Phase Cannon Flak Gun > --- INVENTORY -------- Armored Huge Wheel Advanced Weight Redist. System Trap Scanner Advanced ECM Suite EM Disruption Field Relay Coupler [Grunt] Relay Coupler [Hunter] Relay Coupler [Hunter] Long-range Missile Launcher Improved Datajack Remote Datajack Power Maul [Rating: 85] Favorites ----------- Power Ion Engine Engine Ion Engine Reactor Light Antimatter Reactor Propulsion Flying Fortress v7 Treads Advanced Treads Wheel Wheel Flight Unit Flying Fortress v7 Utility Large Storage Unit Device Improved Heat Sink Storage Large Storage Unit Processor Targeting Computer Hackware Hacking Suite Protection Improved Propulsion Shielding Weapon Beam Cannon Energy Gun Phase Gun Energy Cannon Beam Cannon Ballistic Gun Flak Gun Launcher Improved Grenade Launcher Special Weapon Remote Datajack Impact Weapon Heavy Flail Special Melee Weapon Improved Datajack Build | -11 -10 -10 -10 -9 -8 -7 -7 -7 -7 -6 -6 -6 ------- Run | Yrd Mat Min Exi Min Mat Fac Gar Fac Gar Fac Ext Cet Slots Evolved 8 | . . . . . 4 2 . . . 2 . . Power . | . . . . . . . . . . . . . Propulsion 2 | . . . . . 2 . . . . . . . Utility 5 | . . . . . 2 1 . . . 2 . . Weapon 1 | . . . . . . 1 . . . . . . Parts Attached 189 | 6 12 12 . 2 15 20 42 24 21 9 21 5 Power 5 | 1 . . . . . 1 1 1 . . . 1 Engine 3 | 1 . . . . . 1 . . . . . 1 Core . | . . . . . . . . . . . . . Reactor 2 | . . . . . . . 1 1 . . . . Propulsion 31 | 2 4 2 . . 6 2 8 . 2 . 4 1 Treads 8 | 2 2 2 . . 2 . . . . . . . Leg . | . . . . . . . . . . . . . Wheel 13 | . 2 . . . 2 1 4 . 1 . 2 1 Hover . | . . . . . . . . . . . . . Flight 10 | . . . . . 2 1 4 . 1 . 2 . Utility 84 | 1 4 7 . 1 5 10 15 16 10 6 7 2 Device 48 | . 2 3 . 1 1 6 8 12 3 5 5 2 Storage 4 | 1 1 1 . . . . . . 1 . . . Processor 2 | . . . . . 1 1 . . . . . . Hackware 9 | . . . . . 1 . . 3 2 1 2 . Protection 21 | . 1 3 . . 2 3 7 1 4 . . . Artifact . | . . . . . . . . . . . . . Weapon 69 | 2 4 3 . 1 4 7 18 7 9 3 10 1 Energy Gun 20 | 2 . . . . 1 3 9 1 1 . 2 1 Energy Cannon 7 | . 3 1 . 1 1 . . . . 1 . . Ballistic Gun 4 | . . . . . . . . . 2 1 1 . Ballistic Cannon . | . . . . . . . . . . . . . Launcher 11 | . . 2 . . . 1 4 1 2 . 1 . Special Weapon 7 | . 1 . . . . . . 2 2 . 2 . Impact Weapon 14 | . . . . . 2 2 3 3 1 1 2 . Slashing Weapon . | . . . . . . . . . . . . . Piercing Weapon . | . . . . . . . . . . . . . Special Melee Weapon 6 | . . . . . . 1 2 . 1 . 2 . Unidentified Prototypes 1 | . . . . . 1 . . . . . . . Parts Lost 19 | . . . . . . . 6 1 3 . 2 7 Power 2 | . . . . . . . . 1 . . . 1 Propulsion . | . . . . . . . . . . . . . Utility 11 | . . . . . . . 4 . 2 . 2 3 Weapon 6 | . . . . . . . 2 . 1 . . 3 Highest Loss Streak 7 | . . . . . . . 4 1 2 . 2 7 To Critical Strikes 1 | . . . . . . . . . . . . 1 Average Slot Usage (%) 83 | . 99 100 100 100 83 74 73 75 74 80 79 70 Engine 5 | . 14 14 14 14 9 7 1 . . . . 1 Reactor 3 | . . . . . . . 5 7 7 6 6 3 Treads 8 | . 26 28 28 28 7 . . . . . . . Wheel 1 | . 1 . . . 7 . . . . . . 2 Flight 4 | . . . . . 4 6 6 7 6 6 5 4 Device 14 | . 12 9 . 12 8 15 18 14 17 26 23 16 Storage 9 | . 14 14 14 14 9 7 7 7 7 6 6 5 Hackware 4 | . . . . . 4 7 1 10 3 6 10 20 Protection 5 | . . 4 14 1 8 4 9 4 8 6 4 . Energy Gun 8 | . 7 . . . 3 14 13 14 12 6 4 4 Energy Cannon 7 | . 18 23 14 26 10 . . . . . 6 6 Launcher 1 | . . 4 14 1 . . 2 . 2 . . . Impact Weapon 2 | . . . . . 4 6 4 4 1 5 1 1 Naked Turns . | . . . . . . . . . . . . . Heaviest Build 71 | 14 22 42 42 42 41 53 71 57 59 59 59 57 Greatest Support 59 | 40 40 44 44 44 50 56 56 59 59 59 59 59 Greatest Overweight (x) 2 | 1 . . . . 1 1 2 . 1 . 1 1 Average Overweight (x) . | . . . . . . . . . . . . . Largest Inventory Capacity 15 | 8 10 15 15 15 15 15 15 15 15 15 15 15 Average Capacity 13 | 7 9 11 15 15 15 15 15 15 15 15 15 13 Most Carried 15 | 6 10 11 15 15 15 15 15 15 15 15 15 15 Average Carried 12 | 3 7 10 14 14 11 13 13 14 13 14 14 12 Final Capacity 15 | 8 10 15 15 15 15 15 15 15 15 15 15 5 Final Carried 15 | 4 10 11 15 15 12 15 15 15 15 15 14 5 Class Distribution -------------------- 68% | Mutant 14% | Bothacker-Mutant 8% | Bothacker-Skirmisher 4% | Tank 3% | Skirmisher Dominant Class ---------------- Mutant | -10/Materials Mutant | -10/Mines Mutant | -10/Exiles Mutant | -9/Mines Mutant | -8/Materials Mutant | -7/Factory Mutant | -7/Garrison Mutant | -7/Factory Mutant | -7/Garrison Bothacker-Mutant | -6/Factory Bothacker-Mutant | -6/Extension Mutant | -6/Cetus Resources | -11 -10 -10 -10 -9 -8 -7 -7 -7 -7 -6 -6 -6 ----------- Run | Yrd Mat Min Exi Min Mat Fac Gar Fac Gar Fac Ext Cet Matter Collected 2689 | 241 139 146 . 20 54 164 681 159 585 51 399 50 Remotely . | . . . . . . . . . . . . . Salvage Created 2520 | . 273 139 . . 104 124 1085 263 321 51 160 . Parts 142 | . 19 8 . . 13 7 50 20 15 1 9 . Haulers Intercepted 1 | . 1 . . . . . . . . . . . Recyclers Shooed . | . . . . . . . . . . . . . Parts Field Recycled 12 | . . . . . . 12 . . . . . . Retrieved Matter 253 | . . . . . . 253 . . . . . . Parts Self-Destructed . | . . . . . . . . . . . . . Prevented . | . . . . . . . . . . . . . Kills | -11 -10 -10 -10 -9 -8 -7 -7 -7 -7 -6 -6 -6 ------- Run | Yrd Mat Min Exi Min Mat Fac Gar Fac Gar Fac Ext Cet Combat Hostiles Destroyed 68 | . 6 6 . . 3 2 28 4 16 1 2 . Guns 23 | . 2 . . . . . 13 3 5 . . . Cannons 13 | . 4 4 . . 3 . . . . . 2 . AOE 26 | . . 2 . . . 1 13 1 9 . . . Classes Destroyed 14 | . 6 1 . . . 2 2 1 2 . . . Worker 1 | . 1 . . . . . . . . . . . Builder 2 | . . . . . . . . 2 . . . . Hauler 1 | . 1 . . . . . . . . . . . Operator 3 | . 1 . . . 1 . . . . . 1 . Watcher 7 | . 3 . . . 1 1 . 2 . . . . Swarmer 29 | . 5 3 . . 3 . 7 . 11 . . . Grunt 22 | . 1 2 . . . . 15 2 2 . . . Brawler 1 | . . . . . . . . . 1 . . . Duelist 2 | . . . . . . . 2 . . . . . Sentry 9 | . . . . . . 1 3 1 1 1 2 . Specialist 1 | . . . . . . . 1 . . . . . Hunter 1 | . . . . . . . . . 1 . . . Programmer 2 | . . . . . . 1 . 1 . . . . Assembled 1 | . . 1 . . . . . . . . . . Best Kill Streak 9 | . 3 3 . . 3 1 7 5 9 1 1 . Combat Bots Only 9 | . 3 3 . . 3 1 7 3 9 1 1 . Max Kills in Single Turn 3 | . 1 2 . . 2 1 3 3 3 1 1 . Gunslinging 1 | . . . . . . . 1 . 1 . . . Exploded 3 | . . 2 . . . 1 3 1 3 . . . Melee . | . . . . . . . . . . . . . Uniques/NPCs Destroyed . | . . . . . . . . . . . . . Combat | -11 -10 -10 -10 -9 -8 -7 -7 -7 -7 -6 -6 -6 -------- Run | Yrd Mat Min Exi Min Mat Fac Gar Fac Gar Fac Ext Cet Hostile Shots Fired 593 | . 37 11 . . 9 107 196 24 61 32 60 56 Missed 301 | . 7 5 . . 2 61 106 15 30 22 34 19 Damage Taken 3887 | . 250 136 . . 56 395 964 124 397 105 355 1105 Core 700 | . 47 74 . . . 26 97 15 54 19 25 343 Absorbed by Shields 222 | . . . . . . . 98 . 51 . 47 26 Redirected to Shielding 464 | . . . . . . 99 156 48 78 29 54 . Ignored by Resistances 65 | . . . . . . . 65 . . . . . Regen/Repaired (Parts) 134 | . . . . . . . . 134 . . . . Core Remaining (%) 80 | 100 . . . 51 100 . . . 72 . . . Volleys Fired 237 | . 34 8 . . 8 12 71 30 42 6 19 7 Largest 3 | . 2 2 . . 2 3 3 3 3 3 3 3 Hottest 231 | . 120 120 . . 120 165 231 215 202 188 201 201 Shots Fired 419 | . 65 16 . . 13 24 140 46 60 13 27 15 Gun 264 | . 22 . . . 3 21 117 31 45 9 8 8 Cannon 81 | . 42 14 . . 10 . . . . 3 5 7 Launcher 49 | . . 2 . . . 3 23 3 13 . 5 . Special 25 | . 1 . . . . . . 12 2 1 9 . Kinetic 18 | . . . . . . . . . 6 4 5 3 Thermal 215 | . 65 14 . . 10 . 28 31 39 8 8 12 Explosive 49 | . . 2 . . . 3 23 3 13 . 5 . Electromagnetic 113 | . . . . . 3 21 89 . . . . . Robot Hit Streak 27 | . 8 4 . . 11 16 10 4 7 5 27 4 Robot Miss Streak 6 | . 6 2 . . . 2 6 4 5 2 3 2 Penetration Max . | . . . . . . . . . . . . . Secondary Targets 5 | . 1 . . . . . 3 . 1 . . . Max Gunslinging Chain 1 | . 1 . . . . . 1 . 1 . . . Shots Hit Robots 256 | . 30 8 . . 9 20 88 18 29 9 34 11 Core Hits 143 | . 13 6 . . 5 6 57 12 27 3 9 5 Critical Kills . | . . . . . . . . . . . . . Critical Parts Destroyed 1 | . . . . . . 1 . . . . . . Critical Strikes 10 | . 1 . . . . 1 1 1 5 1 . . Burn 9 | . 1 . . . . . 1 1 5 1 . . Smash 1 | . . . . . . 1 . . . . . . Melee Attacks 80 | . . . . . 15 9 14 11 2 4 25 . Impact 61 | . . . . . 15 8 12 11 2 4 9 . Slashing . | . . . . . . . . . . . . . Piercing . | . . . . . . . . . . . . . Sneak Attacks 19 | . . . . . . 1 2 . . . 16 . Combat Hostiles 2 | . . . . . . . 2 . . . . . Follow-up Attacks . | . . . . . . . . . . . . . Damage Inflicted 6889 | . 493 278 . . 181 422 2743 543 1434 185 255 355 Guns 2733 | . 159 . . . 24 177 1101 325 514 127 134 172 Cannons 975 | . 333 123 . . 157 . . . . 58 121 183 Explosions 2917 | . . 142 . . . 156 1481 218 920 . . . Melee 250 | . . . . . . 89 161 . . . . . Ramming 14 | . 1 13 . . . . . . . . . . Kinetic 244 | . . . . . . . . . 59 65 54 66 Thermal 2636 | . 492 123 . . 157 46 428 325 455 120 201 289 Explosive 2834 | . . 142 . . . 110 1444 218 920 . . . Electromagnetic 911 | . . . . . 24 177 710 . . . . . Impact 250 | . . . . . . 89 161 . . . . . Slashing . | . . . . . . . . . . . . . Piercing . | . . . . . . . . . . . . . Highest Corruption 2 | . . . . . . . . 2 . . 1 . Average Corruption 1 | . . . . . . . . 1 . . 1 . Corruption Purged 4 | . . . . . . . . 3 . . 1 . Corruption Blocked . | . . . . . . . . . . . . . Effects 1 | . . . . . . . . 1 . . . . Message Errors 1 | . . . . . . . . 1 . . . . Overload Shots . | . . . . . . . . . . . . . Overflow Damage 318 | . 30 13 . . 15 89 71 . 100 . . . Projectiles 58 | . 30 13 . . 15 . . . . . . . Explosions 135 | . . . . . . . 35 . 100 . . . Melee 125 | . . . . . . 89 36 . . . . . Knockbacks 3 | . . . . . . 1 2 . . . . . Impact 3 | . . . . . . 1 2 . . . . . Kinetic . | . . . . . . . . . . . . . Secondary . | . . . . . . . . . . . . . Self-Inflicted Damage 174 | . . 54 . . . . 93 . 27 . . . Shots 4 | . . 1 . . . . 2 . 1 . . . Rammed 3 | . 1 2 . . . . . . . . . . Targets Rammed 3 | . 1 2 . . . . . . . . . . Kicked . | . . . . . . . . . . . . . Crushed . | . . . . . . . . . . . . . Highest Temperature 533 | . 234 240 . . 108 216 533 437 435 267 162 491 Average Temperature 117 | . 74 94 . . 49 63 127 136 137 121 68 250 Received Heat Transfer 828 | . 18 . . . . 102 321 24 18 42 132 171 Effects 14 | . . . . . . . 4 4 5 . . 1 Shutdowns 2 | . . . . . . . 1 1 . . . . Energy Bleed 2 | . . . . . . . 1 . 1 . . . Interference 6 | . . . . . . . . 2 4 . . . Matter Decay 2 | . . . . . . . 2 . . . . . Short Circuit 2 | . . . . . . . . 1 . . . 1 Siege Activations . | . . . . . . . . . . . . . Robots Corrupted 3 | . . . . . . 1 2 . . . . . Combat Hostiles 3 | . . . . . . 1 2 . . . . . Parts Fried 5 | . . . . . . 1 4 . . . . . Impact Corruptions 4 | . . . . . . 3 1 . . . . . Robots Melted 3 | . . . . . . . . . 2 1 . . Combat Hostiles 3 | . . . . . . . . . 2 1 . . Parts Melted 9 | . 1 . . . 1 2 2 . 2 1 . . Heat Transferred 5069 | . 1258 259 . . 333 50 653 518 1110 259 259 370 Parts Sabotaged . | . . . . . . . . . . . . . Parts Stolen . | . . . . . . . . . . . . . Parts Stripped . | . . . . . . . . . . . . . Power Chain Reactions 2 | . . . . . . 1 1 . . . . . Alert | -11 -10 -10 -10 -9 -8 -7 -7 -7 -7 -6 -6 -6 ------- Run | Yrd Mat Min Exi Min Mat Fac Gar Fac Gar Fac Ext Cet Peak Influence 1417 | . 138 123 . . 103 214 1417 743 982 662 614 343 Initial 743 | . . . . . . 46 49 743 262 515 324 343 Average 307 | . 64 39 . . 45 86 604 426 633 564 408 308 Maximum Alert Level 4 | . . . . . . 1 4 3 3 2 2 1 Low Security (%) 49 | 100 100 100 . 100 100 97 22 . . . . . Level 1 19 | . . . . . . 2 11 63 38 . 51 100 Level 2 20 | . . . . . . . 30 32 11 100 48 . Level 3 7 | . . . . . . . 17 4 50 . . . Level 4 3 | . . . . . . . 16 . . . . . Level 5 . | . . . . . . . . . . . . . High Security . | . . . . . . . . . . . . . Max Security . | . . . . . . . . . . . . . Squads Dispatched 24 | . 3 1 . . 1 4 . 6 . 4 5 . Investigation 10 | . . 1 . . . 1 . 3 . 1 4 . Extermination 5 | . . . . . . 2 . 2 . 1 . . Reinforcement 7 | . 3 . . . 1 1 . 1 . . 1 . Assault 2 | . . . . . . . . . . 2 . . Garrison . | . . . . . . . . . . . . . Intercept . | . . . . . . . . . . . . . Searches Triggered . | . . . . . . . . . . . . . Construction Impeded . | . . . . . . . . . . . . . Haulers Reinforced . | . . . . . . . . . . . . . Active Scanning Responses . | . . . . . . . . . . . . . Cargo Convoy Interrupts . | . . . . . . . . . . . . . Stealth | -11 -10 -10 -10 -9 -8 -7 -7 -7 -7 -6 -6 -6 --------- Run | Yrd Mat Min Exi Min Mat Fac Gar Fac Gar Fac Ext Cet Distress Signals 6 | . 1 . . . 1 . . . . . 3 1 Communications Jammed . | . . . . . . . . . . . . . Distress Signals . | . . . . . . . . . . . . . Times Spotted 133 | . 15 6 . . 7 8 33 14 17 10 18 5 Peak Tracking Total 7 | . 4 3 . . 4 2 5 4 7 6 7 5 Tactical Retreats 17 | . . . . . 3 3 6 1 1 2 1 . Traps | -11 -10 -10 -10 -9 -8 -7 -7 -7 -7 -6 -6 -6 ------- Run | Yrd Mat Min Exi Min Mat Fac Gar Fac Gar Fac Ext Cet Traps Triggered 17 | . . . . . . . 10 . 3 1 3 . Indirectly . | . . . . . . . . . . . . . Trap Hack Attempts 25 | . . . . . . . 2 . 23 . . . Triggered 1 | . . . . . . . . . 1 . . . Disarmed 1 | . . . . . . . . . 1 . . . Reprogrammed 3 | . . . . . . . 1 . 2 . . . Reused . | . . . . . . . . . . . . . Traps Extracted . | . . . . . . . . . . . . . Installed . | . . . . . . . . . . . . . Triggered . | . . . . . . . . . . . . . Machines | -11 -10 -10 -10 -9 -8 -7 -7 -7 -7 -6 -6 -6 ---------- Run | Yrd Mat Min Exi Min Mat Fac Gar Fac Gar Fac Ext Cet Machines Disabled 14 | . 2 1 . . . . 6 1 3 . 1 . Max in Single Turn 2 | . 1 1 . . . . 2 1 1 . . . Garrison Access 1 | . . . . . . . . . . 1 . . Garrison Relay 5 | . . . . . . . 3 . 2 . . . Phase Generator 1 | . . . . . . . 1 . . . . . Machines Repaired . | . . . . . . . . . . . . . Machines Dismantled . | . . . . . . . . . . . . . Machines Sabotaged . | . . . . . . . . . . . . . Overloaded Fab Kills . | . . . . . . . . . . . . . Hacking | -11 -10 -10 -10 -9 -8 -7 -7 -7 -7 -6 -6 -6 --------- Run | Yrd Mat Min Exi Min Mat Fac Gar Fac Gar Fac Ext Cet Machines Accessed 58 | . 7 1 1 1 6 11 3 9 2 3 14 . Terminals 42 | . 6 . . 1 5 7 3 4 2 2 12 . Fabricators 4 | . . . . . . 1 . 3 . . . . Repair Stations 3 | . . . . . . 1 . 1 . . 1 . Recycling Units 2 | . 1 . . . . . . . . . 1 . Scanalyzers 2 | . . . . . 1 1 . . . . . . Garrison Access 3 | . . . . . . 1 . 1 . 1 . . Total Hacks 151 | . 20 1 1 2 26 21 6 25 6 10 33 . Successful 74 | . 8 1 1 1 14 11 2 15 1 5 15 . Failed 75 | . 12 . . 1 12 10 4 9 5 4 18 . Catastrophic 15 | . . . . . 2 4 . 1 1 1 6 . Database Lockouts 2 | . . . . . . . . 1 . 1 . . Manual 76 | . 12 . 1 1 14 16 . 8 . 9 15 . Terminals 117 | . 19 . . 2 18 16 6 13 6 9 28 . Fabricators 9 | . . . . . . 2 . 7 . . . . Repair Stations 7 | . . . . . . 1 . 4 . . 2 . Recycling Units 4 | . 1 . . . . . . . . . 3 . Scanalyzers 9 | . . . . . 8 1 . . . . . . Garrison Access 3 | . . . . . . 1 . 1 . 1 . . Terminal Hacks 32 | . 4 1 1 1 4 5 2 4 1 2 7 . Record 2 | . . . 1 . . . . 1 . . . . Part Schematic 4 | . . . . . . 1 . 1 . 1 1 . Open Door 4 | . . 1 . . . . . . . . 3 . Emergency Access Points 2 | . . . . . . . 1 . 1 . . . Terminal Index 4 | . 1 . . . 1 1 . . . 1 . . Garrison Index 2 | . . . . . 1 1 . . . . . . Unreport Threat 2 | . . . . . . . . 2 . . . . Locate Traps 1 | . 1 . . . . . . . . . . . Security Status 1 | . 1 . . . . . . . . . . . Investigation Status 1 | . . . . . . 1 . . . . . . Recall Investigation 3 | . . . . . . 1 . . . . 2 . Recall Reinforcements 2 | . 1 . . . . . . . . . 1 . Zone Layout 3 | . . . . 1 2 . . . . . . . Security Stations 1 | . . . . . . . 1 . . . . . Fabricator Hacks 7 | . . . . . . 2 . 5 . . . . Network Status 1 | . . . . . . . . 1 . . . . Load Schematic 3 | . . . . . . 1 . 2 . . . . Build 3 | . . . . . . 1 . 2 . . . . Repair Station Hacks 3 | . . . . . . . . 2 . . 1 . Scan Component 2 | . . . . . . . . 1 . . 1 . Repair 1 | . . . . . . . . 1 . . . . Recycling Unit Hacks 3 | . 1 . . . . . . . . . 2 . Report Inventory 2 | . 1 . . . . . . . . . 1 . Retrieve Components 1 | . . . . . . . . . . . 1 . Scanalyzer 6 | . . . . . 6 . . . . . . . Insert Component 3 | . . . . . 3 . . . . . . . Analyze 3 | . . . . . 3 . . . . . . . Garrison Access Hacks 3 | . . . . . . 1 . 1 . 1 . . Unlock Access 2 | . . . . . . 1 . 1 . . . . Seal Access 1 | . . . . . . . . . . 1 . . Unauthorized Hacks 20 | . 3 . . . 4 3 . 3 . 2 5 . Terminals 20 | . 3 . . . 4 3 . 3 . 2 5 . Track 1 | . . . . . 1 . . . . . . . Assimilate 2 | . 1 . . . . . . . . . 1 . Botnet 11 | . 1 . . . 2 2 . 2 . 2 2 . Disrupt 2 | . . . . . . . . . . . 2 . Operators 4 | . 1 . . . 1 1 . 1 . . . . Fabricators . | . . . . . . . . . . . . . Repair Stations . | . . . . . . . . . . . . . Recycling Units . | . . . . . . . . . . . . . Scanalyzers . | . . . . . . . . . . . . . Garrison Access . | . . . . . . . . . . . . . Data Cores Recovered 1 | . . . . . 1 . . . . . . . Used . | . . . . . . . . . . . . . Hacking Detections 50 | . 6 . . 1 5 10 3 8 2 2 13 . Full Trace Events 11 | . . . . . . 1 1 3 2 . 4 . Feedback Events 2 | . . . . . . . . 1 . . 1 . Corruption 2 | . . . . . . . . 1 . . 1 . Feedback Blocked . | . . . . . . . . . . . . . Robot Schematics Acquired . | . . . . . . . . . . . . . Robots Built . | . . . . . . . . . . . . . Authchips . | . . . . . . . . . . . . . Time . | . . . . . . . . . . . . . Total Robot Build Rating . | . . . . . . . . . . . . . Part Schematics Acquired 7 | . . . . . 3 1 . 1 . 1 1 . Parts Built 6 | . . . . . . 2 . 4 . . . . Authchips . | . . . . . . . . . . . . . Time 182 | . . . . . . 73 . 109 . . . . Total Part Build Rating 18 | . . . . . . 6 . 12 . . . . Parts Repaired 1 | . . . . . . . . 1 . . . . Time 22 | . . . . . . . . 22 . . . . Parts Recycled . | . . . . . . . . . . . . . Recycled Matter . | . . . . . . . . . . . . . Retrieved Matter . | . . . . . . . . . . . . . Retrieved Components 1 | . . . . . . . . . . . 1 . Parts Scanalyzed 3 | . . . . . 3 . . . . . . . Part Schematics Acquired 3 | . . . . . 3 . . . . . . . Parts Damaged . | . . . . . . . . . . . . . Bothacking | -11 -10 -10 -10 -9 -8 -7 -7 -7 -7 -6 -6 -6 ------------ Run | Yrd Mat Min Exi Min Mat Fac Gar Fac Gar Fac Ext Cet Used RIF Installer 2 | . . . . . . . 1 . 1 . . . Program Shield 1 | . . . . . . . . . 1 . . . Robots Hacked 10 | . . . . . . . . 4 2 1 3 . Non-combat 5 | . . . . . . . . 3 . 1 1 . Combat 5 | . . . . . . . . 1 2 . 2 . Robot Hacks Applied 10 | . . . . . . . . 4 2 1 3 . map_walls 1 | . . . . . . . . 1 . . . . map_route 3 | . . . . . . . . 2 . 1 . . overwrite_iff 2 | . . . . . . . . . . . 2 . streamctrl_high 2 | . . . . . . . . . 1 . 1 . formatsys_high 2 | . . . . . . . . 1 1 . . . Relay Couplers Released 19 | . . . . . . . 11 . 8 . . . Machine Destruction 19 | . . . . . . . 11 . 8 . . . Attached 6 | . . . . . . . . 2 2 1 1 . Fabnet Peak Effective % . | . . . . . . . . . . . . . Robots Rewired 8 | . . . . . . 1 1 . . . 6 . Allies Hacked 1 | . . . . . . . . 1 . . . . Hacks Repelled . | . . . . . . . . . . . . . Allies | -11 -10 -10 -10 -9 -8 -7 -7 -7 -7 -6 -6 -6 -------- Run | Yrd Mat Min Exi Min Mat Fac Gar Fac Gar Fac Ext Cet Total Allies 23 | . . 2 . . . 1 1 1 3 . 15 . Largest Group 6 | . . 2 . . . 1 1 1 1 . 6 3 Highest-Rated Group 221 | . . 47 . . . 19 16 21 32 . 221 221 Highest-Rated Ally 159 | . . 31 . . . 19 16 21 32 . 159 159 Total Orders 6 | . . . . . . . 1 3 1 . . 1 STAY 2 | . . . . . . . . 1 1 . . . ROAM 2 | . . . . . . . 1 1 . . . . FOLLOW 1 | . . . . . . . . 1 . . . . GUARD 1 | . . . . . . . . . . . . 1 Ally Attacks 128 | . . 4 . . . . 1 4 8 . 102 9 Total Damage 3374 | . . 18 . . . . 17 99 227 . 2400 613 Kills 19 | . . . . . . . . . 2 . 16 1 Allies Corrupted . | . . . . . . . . . . . . . Allies Melted . | . . . . . . . . . . . . . Intel | -11 -10 -10 -10 -9 -8 -7 -7 -7 -7 -6 -6 -6 ------- Run | Yrd Mat Min Exi Min Mat Fac Gar Fac Gar Fac Ext Cet Robot Analysis Total . | . . . . . . . . . . . . . Derelict Logs Recovered 2 | . . 1 . 1 . . . . . . . . Drone Launches . | . . . . . . . . . . . . . Drone Recoveries . | . . . . . . . . . . . . . Exploration | -11 -10 -10 -10 -9 -8 -7 -7 -7 -7 -6 -6 -6 ------------- Run | Yrd Mat Min Exi Min Mat Fac Gar Fac Gar Fac Ext Cet Turns Passed 7966 | 67 810 816 328 382 662 758 1445 1085 536 366 648 63 Spaces Moved 7486 | 37 434 506 223 261 543 1075 1518 1156 461 569 665 38 Core 9 | 9 . . . . . . . . . . . . Treads 1407 | 28 381 506 223 261 8 . . . . . . . Legs . | . . . . . . . . . . . . . Wheels 146 | . 53 . . . 42 10 4 . 1 . 19 17 Hover . | . . . . . . . . . . . . . Flight 5924 | . . . . . 493 1065 1514 1156 460 569 646 21 Fastest Speed 50 | 50 80 145 145 145 50 50 50 50 50 50 50 50 Average Speed 70 | 137 150 149 145 145 55 50 50 50 51 50 51 75 Slowest Speed 225 | 160 160 160 145 145 225 150 130 50 150 50 115 115 Overloaded Moves . | . . . . . . . . . . . . . Propulsion Burnouts . | . . . . . . . . . . . . . Robots Hopped 15 | . . . . . 1 6 . 1 . 3 4 . Cave-ins Triggered . | . . . . . . . . . . . . . Exploration Rate (%) 47 | 4 64 97 59 71 32 28 93 28 52 11 65 18 Regions Visited 12 Branch Regions 5 Pre-discovered Areas 1 | . . . 1 . . . . . . . . . Known Exits Taken 2 | . . . . . . 1 . 1 . . . . Unknown Exits Taken 8 | 1 1 1 1 1 1 . . . . 1 1 . Scrap Searched 4 | . . 3 . 1 . . . . . . . . Spaces Dug 69 | . 1 . . . 13 5 33 11 . 4 2 . Terrain Destroyed 593 | . 1 27 . . 13 21 271 24 123 4 108 1 Melee 37 | . . . . . 13 5 2 11 . 4 2 . Projectile 3 | . 1 . . . . . . . . . 1 1 AOE 553 | . . 27 . . . 16 269 13 123 . 105 . Terrain Rammed . | . . . . . . . . . . . . . Walls Destroyed . | . . . . . . . . . . . . . Machines Disabled . | . . . . . . . . . . . . . Actions | -11 -10 -10 -10 -9 -8 -7 -7 -7 -7 -6 -6 -6 --------- Run | Yrd Mat Min Exi Min Mat Fac Gar Fac Gar Fac Ext Cet Total 9693 | 51 522 545 229 264 872 1245 2060 1600 699 626 922 58 Wait 1262 | 3 27 6 . . 274 104 234 364 72 36 139 3 Move 7445 | 36 433 505 222 260 540 1063 1517 1153 460 562 656 38 Hop 15 | . . . . . 1 6 . 1 . 3 4 . Pick Up 84 | 6 8 5 4 1 6 15 12 5 10 4 6 2 Fast Attach 35 | 4 4 2 . . 4 3 6 4 5 . 2 1 Attach 55 | 2 . . . . 8 5 16 3 11 2 6 2 Detach 25 | . 1 . . . 4 1 9 3 4 . 2 1 Swap 99 | . 8 10 . 2 3 12 20 17 5 7 13 2 Drop 84 | . 6 7 3 1 9 15 12 9 10 2 8 2 Fire 237 | . 34 8 . . 8 12 71 30 42 6 19 7 Melee 80 | . . . . . 15 9 14 11 2 4 25 . Ram . | . . . . . . . . . . . . . Kick . | . . . . . . . . . . . . . Crush 3 | . 1 2 . . . . . . . . . . Escape Stasis 243 | . . . . . . . 147 . 54 . 42 . Rewire 1 | . . . . . . . . . 1 . . . Trap 25 | . . . . . . . 2 . 23 . . . Miscellaneous . | . . . . . . . . . . . . . Route ------- -11/Scrapyard -10/Materials (discovered 2 exits: [*Mat] / *Min) -10/Mines (discovered 4 exits: [*Mat x2] / *Exi / Sub) -10/Exiles -9/Mines -8/Materials -7/Factory -7/Garrison (discovered 3 exits: *Fac x3) -7/Factory (discovered 3 exits: *Fac / [*Low] / Gar) -7/Garrison -6/Factory (discovered 2 exits: [*Fac] / *Ext) -6/Extension (discovered 2 exits: [*Fac] / [*Cet]) -6/Cetus History --------- Turn | Location | Event 8 | -11/Scrapyard | Discovered new exit (range 15) 68 | -11/Scrapyard | Entered Materials 328 | -10/Materials | Build established: Mutant 785 | -10/Materials | Discovered new exit (range 5) 830 | -10/Materials | Discovered new exit (range 9) 878 | -10/Materials | Entered Mines 984 | -10/Mines | Discovered new exit (range 8) 1089 | -10/Mines | Assembled infested the area 1134 | -10/Mines | Met a Derelict shopkeep closing up shop 1445 | -10/Mines | Discovered new exit (range 9) 1507 | -10/Mines | Identified exit to Subcaves 1687 | -10/Mines | Deemed a non-threat by the Exiles lab entrance 1689 | -10/Mines | Discovered new exit (range 5) 1694 | -10/Mines | Entered Exiles 1740 | -10/Exiles | Met 8R-AWN 1763 | -10/Exiles | Met EX-HEX 1808 | -10/Exiles | Met EX-BIN 1824 | -10/Exiles | Aligned with FarCom system 1825 | -10/Exiles | Given EX-Vault access code 1858 | -10/Exiles | Opened EX-Vault 1867 | -10/Exiles | Found Prototype Flight Unit 1904 | -10/Exiles | Warned to stay clear of 0b10 Research branches 1945 | -10/Exiles | Met EX-DEC 1951 | -10/Exiles | Learned location of Zion (-6) 2007 | -10/Exiles | Discovered new exit (range 12) 2022 | -10/Exiles | Left Exiles lab with Flying Fortress v7 2022 | -10/Exiles | Entered Mines 2162 | -9/Mines | Learned 2 Materials zone layouts 2356 | -9/Mines | Found a hidden stash of uninstalled traps 2398 | -9/Mines | Discovered new exit (range 3) 2404 | -9/Mines | Entered Materials 2404 | -8/Materials | Evolved 4 slots: Propulsion x2, Utility x2 2410 | -8/Materials | Identified Flying Fortress v7 3065 | -8/Materials | Discovered new exit (range 4) 3066 | -8/Materials | Entered Factory 3066 | -7/Factory | Evolved 2 slots: Utility x1, Weapon x1 3793 | -7/Factory | Fabricated Imp. Propulsion Shielding (x2) 3824 | -7/Factory | Identified exit to Garrison 3824 | -7/Factory | Entered Garrison 3906 | -7/Garrison | Triggered checkpoint 4100 | -7/Garrison | Triggered checkpoint 4178 | -7/Garrison | Triggered checkpoint 4304 | -7/Garrison | Triggered checkpoint 4340 | -7/Garrison | Triggered checkpoint 4369 | -7/Garrison | Destroyed 7 combat bots 4371 | -7/Garrison | Discovered new exit (range 15) 4374 | -7/Garrison | Lost 4 parts (2u2w) 4595 | -7/Garrison | Discovered new exit (range 12) 4599 | -7/Garrison | Learned Factory security intel 4815 | -7/Garrison | Discovered new exit (range 10) 4862 | -7/Garrison | Triggered checkpoint 5018 | -7/Garrison | Phase Generator disabled 5052 | -7/Garrison | Triggered checkpoint 5080 | -7/Garrison | Installed Relay Interface Framework 5084 | -7/Garrison | Garrison Relay disabled 5183 | -7/Garrison | Garrison Relay disabled 5234 | -7/Garrison | Garrison Relay disabled 5269 | -7/Garrison | Entered Factory 5463 | -7/Factory | Central database locked down 5531 | -7/Factory | Discovered new exit (range 11) 5568 | -7/Factory | Fabricated Imp. Propulsion Shielding? 6071 | -7/Factory | Fabricated Adv. Weight Redist. System? 6147 | -7/Factory | Repaired Arm. Huge Wheel 6233 | -7/Factory | Discovered new exit (range 16) 6352 | -7/Factory | Identified exit to Garrison 6354 | -7/Factory | Entered Garrison 6371 | -7/Garrison | Rescued a captive Derelict 6373 | -7/Garrison | Rescued a captive Derelict 6456 | -7/Garrison | Triggered checkpoint 6550 | -7/Garrison | Triggered checkpoint 6566 | -7/Garrison | Triggered checkpoint 6606 | -7/Garrison | Destroyed 9 combat bots 6671 | -7/Garrison | Garrison Relay disabled 6753 | -7/Garrison | Discovered new exit (range 15) 6817 | -7/Garrison | Expanded RIF knowledge: Program Shield 6823 | -7/Garrison | Garrison Relay disabled 6890 | -7/Garrison | Entered Factory 6890 | -6/Factory | Evolved 2 slots: Utility x2 6897 | -6/Factory | Discovered new exit (range 41) 6956 | -6/Factory | Discovered new exit (range 12) 7135 | -6/Factory | Central database locked down 7190 | -6/Factory | Build established: Bothacker-Mutant 7240 | -6/Factory | First assault squad dispatched 7256 | -6/Factory | Entered Extension 7359 | -6/Extension | Rescued a captive Derelict 7380 | -6/Extension | Rescued a captive Derelict 7381 | -6/Extension | Rescued a captive Derelict 7496 | -6/Extension | Rescued a captive Derelict 7544 | -6/Extension | Rescued a captive Derelict 7668 | -6/Extension | Lost 8 allies 7854 | -6/Extension | Rescued A7 7897 | -6/Extension | Discovered new exit (range 10) 7897 | -6/Extension | Discovered new exit (range 6) 7904 | -6/Extension | Entered Cetus 7904 | -6/Cetus | Accompanied by 3 allies (A7) 7909 | -6/Cetus | Acquired a Cetus Manufacturing Module code from A7 7915 | -6/Cetus | Spotted Cetus Guard 7915 | -6/Cetus | Spotted Cetus Guard 7919 | -6/Cetus | Spotted Cetus Guard 7919 | -6/Cetus | Spotted Cetus Guard 7939 | -6/Cetus | Allies destroyed Cetus Guard 7967 | -6/Cetus | Self-destructed Last Messages --------------- 07947_ Penetrated by Slug. 07947_ Lgt. Angular Momentum Engine destroyed. 07947_ Penetrated by Slug. 07947_ Critical hit (Destroy). 07947_ Flak Gun destroyed. 07948_ Penetrated by Slug. 07950_ Phase Gun destroyed. 07950_ Penetrated by Slug. 07953_ Acquired Adv. System Shield. 07953_ EM Disruption Field destroyed. 07953_ Slug penetrates Wall. 07954_ Penetrated by Slug. 07954_ Acquired 25 matter. 07956_ Acquired Adv. Hacking Suite. 07957_ Slug penetrates Wall. 07958_ Penetrated by Slug. 07958_ Lrg. Storage Unit destroyed. 07959_ Penetrated by Slug. 07963_ Phase Cannon destroyed. 07966_ Slug penetrates Wall. Map ----- +----------------------------------------------------+ | ?????????????????????????????????????????????????? | | ?????????????????????????????????????????????????? | | ?????????????????????????????????????????????????? | | ?????????????????????????????????????????????????? | | ?????????????????????????????????????????????????? | | ?????????????????????????????????????????????????? | | ?????????????????????????????????????????????????? | | ?????????????????????????????????????????????????? | | ?????????????????????????????????????????????????? | | ?????????????????????????????????????????????????? | | ??????????????????????? ???????????????????????? | | ??????????????????????# ???????????????????????? | | ??????????????????????# ???????????????????????? | | ??????????????????????# ???????????????????????? | | ??????????????????????# ???????????????????????? | | ??????????????????????# ???????????????????????? | | ??????????????????????# #??????????????????????? | | ??????????????????????# #??????????????????????? | | ??????????????????????# #??????????????????????? | | ??????????????????????# #??????????????????????? | | ??????????????????????# #??????????????????????? | | ??????????????????????# #??????????????????????? | | ??????????????????????# #??????????????????????? | | ??????????????????????# #??????????????????????? | | ??????????????????????# #??????????????????????? | | ??????????????????????# @#??????????????????????? | | ??????????????????????# #??????????????????????? | | ?????????????????###### ;??????????????????????? | | ?????????????????# # #??????????????????????? | | ?????????######?## ; #???######?????????????? | | ?#########""""""#"###|] YY##"""" ##????????????? | | ?# =%=! /![ Y +???????????? | | ?# =%! *[%$! w +???????????? | | ?# !!/ %! +???????????? | | ?########"####"###;;;;!;;;#""""" ###???????????? | | ?????????????##??###### ### """##?????????????? | | ??????????????????????###???## ####??????????????? | | ??????????????????????????????##?????????????????? | | ?????????????????????????????????????????????????? | | ?????????????????????????????????????????????????? | | ?????????????????????????????????????????????????? | | ?????????????????????????????????????????????????? | | ?????????????????????????????????????????????????? | | ?????????????????????????????????????????????????? | | ?????????????????????????????????????????????????? | | ?????????????????????????????????????????????????? | | ?????????????????????????????????????????????????? | | ?????????????????????????????????????????????????? | | ?????????????????????????????????????????????????? | | ?????????????????????????????????????????????????? | +----------------------------------------------------+ Best States ------------- Heat Dissipation 56 Energy Generation 25 Energy Capacity 275 Matter Stores 300 Matter Capacity 300 Sight Range 20 Robot Scan Range 14 Terrain Scan Density 10 ECM Strength 2 Additional Mass Support 9 Armor Coverage 225 Resistance: KI 30 Resistance: EX 25 Resistance: EM 25 Propulsion Shielding 66 Utility Shielding 33 Weapon Shielding 66 Phase Shifting 10 Evasion (%) 78 Targeting Accuracy 5 Recoil Reduction 2 Offensive Hacking 10 Defensive Hacking 10 Relay Coupler Types 2 Relay Coupler Value 48 Item Schematics ----------------- Datajack | -8/Materials | Scanalyzed Hrd. Medium Armor Plating | -8/Materials | Scanalyzed Weight Redist. System | -8/Materials | Scanalyzed Imp. Propulsion Shielding | -7/Factory | Hacked Adv. Weight Redist. System | -7/Factory | Hacked Lrg. Storage Unit | -6/Factory | Hacked Imp. Reaction Control System | -6/Extension | Hacked Robot Schematics ------------------ None Fabricated ------------ Imp. Propulsion Shielding | x2 | -7/Factory Imp. Propulsion Shielding | x2 | -7/Factory Adv. Weight Redist. System | x2 | -7/Factory Alien Tech Used ----------------- None Achievements -------------- None Challenges ------------ None Game ------ Seed CoolantEncryptedMount Manual? 0 Play Time 02:38:33 Cumulative 104.5 hours Start 2024.05.13 @ 23:38:33 End 2024.05.15 @ 00:31:23 Sessions 3 Manual Loads 0 Difficulty Rogue Special Mode None Game No. 82 Rogue 43 Adventurer 32 Explorer 7 Win Type - Total 0 Types 0/0/0/0/0/0/0/0/0 Lore% 28 Gallery% 61 Achievement% 46 Wizard Run 0 Options --------- Layout 2 ASCII 0 Keyboard 0 Movement Numpad Keybinds 0 Fullscreen 2 Font 16/SmallcapsGlow Map View 50x44 Zoom Use 0% Tactical HUD 1 Map Filters NONE Filters NONE Steam SD RUN: cf24a212-a615-4685-8edd-8e4c89d6cdce